fUSD/lending_fUSD_20250906
["ID","MTS","AMOUNT","RATE_DAILY","PERIOD"]
[383901393,1757170247241,-646.87,0.00035616,8]
[383901394,1757170247251,-405.57318017,0.00035616,8]
[383901395,1757170247259,-400.0,0.00035616,8]
[383901396,1757170247268,-646.87,0.00035616,8]
[383901397,1757170247277,-646.87,0.00035616,8]
[383901398,1757170247286,-400.0,0.00035616,8]
[383901399,1757170247295,-646.87,0.00035616,8]
[383901400,1757170247304,-647.10489309,0.00035616,8]
[383901401,1757170247313,-400.0,0.00035616,8]
[383901402,1757170247322,-400.0,0.00035616,8]
[383901403,1757170247331,-2843.95,0.00035616,8]
[383901404,1757170247340,-461.39,0.00035616,8]
[383901405,1757170247349,-500.0,0.00035616,8]
[383901406,1757170247358,-500.0,0.00035616,8]
[383901407,1757170247367,-500.0,0.00035616,8]
[383901408,1757170247376,-400.0,0.00035616,8]
[383901409,1757170247385,-527.43426902,0.00035616,8]
[383901410,1757170247394,-400.0,0.00035616,8]
[383901411,1757170247403,-442.14,0.00035616,8]
[383901412,1757170247414,-527.87,0.00035616,8]
[383901413,1757170247423,-410.67,0.00035616,8]
[383901414,1757170247434,-400.0,0.00035616,8]
[383901415,1757170247444,-400.0,0.00035616,8]
[383901416,1757170247455,-400.0,0.00035616,8]
[383901417,1757170247464,-400.0,0.00035616,8]
[383901418,1757170247474,-2567.18,0.00035616,8]
[383901419,1757170247484,-280.57343887,0.00035616,8]
[383901420,1757170247495,-400.0,0.00035616,8]
[383901421,1757170247504,-400.0,0.00035616,8]
[383901422,1757170247515,-299.69649872,0.00035616,8]
[383901423,1757170247525,-501.62,0.00035616,8]
[383901424,1757170247534,-400.0,0.00035616,8]
[383901425,1757170247544,-400.0,0.00035616,8]
[383901426,1757170247554,-416.91,0.00035616,8]
[383901427,1757170247563,-400.0,0.00035616,8]
[383901428,1757170247573,-400.0,0.00035616,8]
[383901429,1757170247584,-400.0,0.00035616,8]
[383901430,1757170247598,-400.0,0.00035616,8]
[383901431,1757170247608,-400.0,0.00035616,8]
[383901432,1757170247617,-400.0,0.00035616,8]
[383901433,1757170247627,-400.0,0.00035616,2]
[383901434,1757170247637,-400.0,0.00035616,5]
[383901435,1757170247646,-400.0,0.00035616,8]
[383901436,1757170247656,-1000.0,0.00035616,8]
[383901437,1757170247666,-905.69,0.00035616,8]
[383901438,1757170247675,-242.40121461,0.00035616,8]
[383901439,1757170247685,-400.0,0.00035616,8]
[383901440,1757170247694,-400.0,0.00035616,8]
[383901441,1757170247704,-400.0,0.00035616,8]
[383901442,1757170247714,-400.0,0.00035616,2]
[383901443,1757170247724,-400.0,0.00035616,8]
[383901444,1757170247734,-400.0,0.00035616,8]
[383901445,1757170247744,-400.0,0.00035616,8]
[383901446,1757170247753,-400.0,0.00035616,8]
[383901447,1757170247763,-400.0,0.00035616,8]
[383901448,1757170247772,-400.0,0.00035616,8]
[383901449,1757170247782,-1247.63,0.00035616,8]
[383901450,1757170247796,-400.0,0.00035616,8]
[383901451,1757170247806,-731.6,0.00035616,8]
[383901452,1757170247817,-400.0,0.00035616,8]
[383901453,1757170247828,-400.0,0.00035616,8]
[383901454,1757170247838,-154.92308841,0.00035616,2]
[383901455,1757170247848,-410.48,0.00035616,8]
[383901456,1757170247860,-400.0,0.00035616,8]
[383901457,1757170247870,-400.0,0.00035616,8]
[383901458,1757170247880,-400.0,0.00035616,8]
[383901459,1757170247890,-400.0,0.00035616,2]
[383901460,1757170247900,-400.0,0.00035616,8]
[383901461,1757170247910,-400.0,0.00035616,8]
[383901462,1757170247919,-400.0,0.00035616,8]
[383901463,1757170247929,-668.52,0.00035616,8]
[383901464,1757170247939,-400.0,0.00035616,8]
[383901465,1757170247949,-407.16019904,0.00035616,8]
[383901466,1757170247959,-217.27,0.00035616,2]
[383901467,1757170247968,-3628.68,0.00035696,2]
[383901468,1757170247978,-150.0,0.00035697,7]
[383901469,1757170247988,-4000.0,0.00035716,4]
[383901470,1757170247998,-264.75,0.00035753,13]
[383901471,1757170248007,-353.0,0.00035785,2]
[383901472,1757170248017,-829.65849748,0.00035864,2]
[383901473,1757170248027,-657.49,0.0003589,8]
[383901474,1757170248037,-400.0,0.0003589,8]
[383901475,1757170248047,-2472.17,0.0003589,8]
[383901476,1757170248056,-1707.02,0.0003589,8]
[383901477,1757170248066,-400.0,0.0003589,8]
[383901478,1757170248076,-465.65,0.0003589,8]
[383901479,1757170248086,-400.0,0.0003589,8]
[383901480,1757170248096,-400.0,0.0003589,8]
[383901481,1757170248107,-3291.11,0.0003589,8]
[383901482,1757170248116,-400.0,0.0003589,8]
[383901483,1757170248126,-1615.09,0.0003589,8]
[383901484,1757170248135,-400.0,0.0003589,8]
[383901485,1757170248145,-400.0,0.0003589,8]
[383901486,1757170248154,-400.0,0.0003589,8]
[383901487,1757170248164,-400.0,0.0003589,8]
[383901488,1757170248174,-407.61,0.0003589,8]
[383901489,1757170248183,-452.45,0.0003589,8]
[383901490,1757170248193,-581.14,0.0003589,8]
[383901491,1757170248203,-400.0,0.0003589,8]
[383901492,1757170248212,-400.0,0.0003589,8]
[383901493,1757170248222,-400.0,0.0003589,8]
[383901494,1757170248232,-400.0,0.0003589,8]
[383901495,1757170248242,-300.0,0.0003589,8]
[383901496,1757170248251,-400.0,0.0003589,8]
[383901497,1757170248261,-400.0,0.0003589,8]
[383901498,1757170248271,-400.0,0.0003589,8]
[383901499,1757170248280,-565.81,0.0003589,8]
[383901500,1757170248290,-406.85329102,0.0003589,8]
[383901501,1757170248301,-400.0,0.0003589,8]
[383901502,1757170248310,-400.0,0.0003589,8]
[383901503,1757170248327,-400.0,0.0003589,8]
[383901504,1757170248339,-400.0,0.0003589,8]
[383901505,1757170248349,-539.1,0.0003589,8]
[383901506,1757170248360,-400.0,0.0003589,8]
[383901507,1757170248370,-400.0,0.0003589,8]
[383901508,1757170248380,-400.0,0.0003589,8]
[383901509,1757170248391,-400.0,0.0003589,8]
[383901510,1757170248401,-400.0,0.0003589,8]
[383901511,1757170248411,-400.0,0.0003589,8]
[383901512,1757170248421,-400.0,0.0003589,8]
[383901513,1757170248432,-400.0,0.0003589,8]
[383901514,1757170248442,-400.0,0.0003589,8]
[383901515,1757170248452,-400.0,0.0003589,8]
[383901516,1757170248462,-400.0,0.0003589,8]
[383901517,1757170248472,-400.0,0.0003589,8]
[383901518,1757170248481,-4235.7,0.0003589,8]
[383901519,1757170248491,-494.76,0.0003589,8]
[383901520,1757170248502,-400.0,0.0003589,8]
[383901521,1757170248512,-400.0,0.0003589,8]
[383901522,1757170248521,-400.0,0.0003589,8]
[383901523,1757170248532,-3533.29,0.0003589,8]
[383901524,1757170248543,-400.0,0.0003589,8]
[383901525,1757170248553,-400.0,0.0003589,8]
[383901526,1757170248563,-477.01738922,0.0003589,8]
[383901527,1757170248573,-400.0,0.0003589,8]
[383901528,1757170248583,-478.67,0.0003589,8]
[383901529,1757170248593,-400.0,0.0003589,8]
[383901530,1757170248603,-400.0,0.0003589,8]
[383901531,1757170248613,-400.0,0.0003589,8]
[383901532,1757170248623,-400.0,0.0003589,8]
[383901533,1757170248633,-2974.82,0.0003589,8]
[383901534,1757170248643,-400.0,0.0003589,8]
[383901535,1757170248653,-400.0,0.0003589,8]
[383901536,1757170248663,-400.0,0.0003589,8]
[383901537,1757170248674,-549.16,0.0003589,8]
[383901538,1757170248686,-668.54,0.0003589,8]
[383901539,1757170248696,-624.0,0.0003589,8]
[383901540,1757170248707,-6082.16,0.0003589,8]
[383901541,1757170248717,-400.0,0.0003589,8]
[383901542,1757170248728,-400.0,0.0003589,8]
[383901543,1757170248740,-663.98,0.0003589,8]
[383901544,1757170248750,-688.84,0.0003589,8]
[383901545,1757170248760,-400.0,0.0003589,8]
[383901546,1757170248771,-400.0,0.0003589,8]
[383901547,1757170248781,-400.0,0.0003589,8]
[383901548,1757170248792,-400.0,0.0003589,8]
[383901549,1757170248803,-400.0,0.0003589,8]
[383901550,1757170248813,-400.0,0.0003589,8]
[383901551,1757170248824,-499.88,0.0003589,8]
[383901552,1757170248835,-400.0,0.0003589,8]
[383901553,1757170248844,-484.46,0.0003589,8]
[383901554,1757170248856,-400.0,0.0003589,8]
[383901555,1757170248867,-400.0,0.0003589,8]
[383901556,1757170248877,-476.06,0.0003589,8]
[383901557,1757170248888,-3059.45,0.0003589,8]
[383901558,1757170248899,-405.3700501,0.0003589,8]
[383901559,1757170248909,-400.0,0.0003589,8]
[383901560,1757170248920,-400.0,0.0003589,8]
[383901561,1757170248930,-400.0,0.0003589,8]
[383901562,1757170248940,-400.0,0.0003589,8]
[383901563,1757170248950,-400.0,0.0003589,8]
[383901564,1757170248960,-575.94,0.0003589,8]
[383901565,1757170248971,-400.0,0.0003589,8]
[383901566,1757170248982,-400.0,0.0003589,8]
[383901567,1757170248992,-5250.78,0.0003589,8]
[383901568,1757170249003,-400.0,0.0003589,8]
[383901569,1757170249014,-400.0,0.0003589,8]
[383901570,1757170249024,-400.0,0.0003589,8]
[383901571,1757170249034,-400.0,0.0003589,8]
[383901572,1757170249044,-2843.95,0.0003589,8]
[383901573,1757170249054,-461.39,0.0003589,8]
[383901574,1757170249065,-400.0,0.0003589,8]
[383901575,1757170249075,-400.0,0.0003589,8]
[383901576,1757170249085,-527.87,0.0003589,8]
[383901577,1757170249095,-410.67,0.0003589,8]
[383901578,1757170249105,-400.0,0.0003589,8]
[383901579,1757170249115,-402.61941446,0.0003589,8]
[383901580,1757170249125,-212.52354648,0.0003589,8]
[383901581,1757170249135,-400.0,0.0003589,8]
[383901582,1757170249145,-2567.18,0.0003589,8]
[383901583,1757170249155,-400.0,0.0003589,8]
[383901584,1757170249165,-400.0,0.0003589,8]
[383901585,1757170249175,-442.14,0.0003589,8]
[383901586,1757170249186,-501.62,0.0003589,8]
[383901587,1757170249196,-400.0,0.0003589,8]
[383901588,1757170249206,-416.91,0.0003589,8]
[383901589,1757170249216,-400.0,0.0003589,8]
[383901590,1757170249226,-400.0,0.0003589,8]
[383901591,1757170249236,-400.0,0.0003589,8]
[383901592,1757170249246,-400.0,0.0003589,8]
[383901593,1757170249256,-400.0,0.0003589,8]
[383901594,1757170249266,-400.0,0.0003589,5]
[383901595,1757170249276,-400.0,0.0003589,8]
[383901596,1757170249287,-400.0,0.0003589,2]
[383901597,1757170249297,-400.0,0.0003589,8]
[383901598,1757170249306,-1000.0,0.0003589,8]
[383901599,1757170249316,-905.69,0.0003589,8]
[383901600,1757170249327,-400.0,0.0003589,8]
[383901601,1757170249337,-400.0,0.0003589,8]
[383901602,1757170249347,-400.18301752,0.0003589,2]
[383901603,1757170249358,-400.0,0.0003589,8]
[383901604,1757170249367,-400.0,0.0003589,8]
[383901605,1757170249378,-400.0,0.0003589,8]
[383901606,1757170249388,-400.0,0.0003589,8]
[383901607,1757170249398,-400.0,0.0003589,8]
[383901608,1757170249408,-400.0,0.0003589,8]
[383901609,1757170249418,-1247.63,0.0003589,8]
[383901610,1757170249428,-400.0,0.0003589,8]
[383901611,1757170249438,-400.0,0.0003589,8]
[383901612,1757170249447,-731.6,0.0003589,8]
[383901613,1757170249458,-400.0,0.0003589,8]
[383901614,1757170249468,-410.48,0.0003589,8]
[383901615,1757170249478,-400.0,0.0003589,8]
[383901616,1757170249488,-400.0,0.0003589,8]
[383901617,1757170249498,-400.0,0.0003589,8]
[383901618,1757170249508,-400.0,0.0003589,2]
[383901619,1757170249518,-400.0,0.0003589,8]
[383901620,1757170249528,-400.0,0.0003589,8]
[383901621,1757170249539,-668.52,0.0003589,8]
[383901622,1757170249550,-400.0,0.0003589,8]
[383901623,1757170249560,-400.0,0.0003589,8]
[383901624,1757170249569,-829.65849748,0.00035898,2]
[383901625,1757170249579,-500.0,0.00035973,5]
[383901626,1757170249589,-500.0,0.00035973,5]
[383901627,1757170249600,-100000.0,0.00036,2]
[383901628,1757170249610,-657.49,0.00036164,8]
[383901629,1757170249620,-1707.02,0.00036164,8]
[383901630,1757170249630,-2472.17,0.00036164,8]
[383901631,1757170249639,-465.65,0.00036164,8]
[383901632,1757170249649,-400.0,0.00036164,8]
[383901633,1757170249659,-400.0,0.00036164,8]
[383901634,1757170249668,-400.0,0.00036164,8]
[383901635,1757170249678,-400.0,0.00036164,8]
[383901636,1757170249688,-3291.11,0.00036164,8]
[383901637,1757170249698,-1615.09,0.00036164,8]
[383901638,1757170249708,-400.0,0.00036164,8]
[383901639,1757170249718,-400.0,0.00036164,8]
[383901640,1757170249730,-400.0,0.00036164,8]
[383901641,1757170249740,-400.0,0.00036164,8]
[383901642,1757170249750,-407.61,0.00036164,8]
[383901643,1757170249762,-452.45,0.00036164,8]
[383901644,1757170249772,-581.14,0.00036164,8]
[383901645,1757170249784,-400.0,0.00036164,8]
[383901646,1757170249796,-400.0,0.00036164,8]
[383901647,1757170249805,-400.0,0.00036164,8]
[383901648,1757170249816,-400.0,0.00036164,8]
[383901649,1757170249827,-300.0,0.00036164,8]
[383901650,1757170249839,-400.0,0.00036164,8]
[383901651,1757170249850,-400.0,0.00036164,8]
[383901652,1757170249860,-400.0,0.00036164,8]
[383901653,1757170249871,-565.81,0.00036164,8]
[383901654,1757170249880,-405.46784591,0.00036164,8]
[383901655,1757170249890,-400.0,0.00036164,8]
[383901656,1757170249902,-400.0,0.00036164,8]
[383901657,1757170249912,-400.0,0.00036164,8]
[383901658,1757170249923,-539.1,0.00036164,8]
[383901659,1757170249933,-400.0,0.00036164,8]
[383901660,1757170249943,-400.0,0.00036164,8]
[383901661,1757170249954,-400.0,0.00036164,8]
[383901662,1757170249963,-400.0,0.00036164,8]
[383901663,1757170249973,-400.0,0.00036164,8]
[383901664,1757170249983,-400.0,0.00036164,8]
[383901665,1757170249994,-400.0,0.00036164,8]
[383901666,1757170250004,-400.0,0.00036164,8]
[383901667,1757170250014,-400.0,0.00036164,8]
[383901668,1757170250024,-400.0,0.00036164,8]
[383901669,1757170250035,-400.0,0.00036164,8]
[383901670,1757170250045,-400.0,0.00036164,8]
[383901671,1757170250055,-4235.7,0.00036164,8]
[383901672,1757170250065,-494.76,0.00036164,8]
[383901673,1757170250075,-400.0,0.00036164,8]
[383901674,1757170250085,-404.63498774,0.00036164,8]
[383901675,1757170250095,-400.0,0.00036164,8]
[383901676,1757170250105,-3533.29,0.00036164,8]
[383901677,1757170250115,-400.0,0.00036164,8]
[383901678,1757170250125,-405.95203536,0.00036164,8]
[383901679,1757170250135,-400.0,0.00036164,8]
[383901680,1757170250146,-478.67,0.00036164,8]
[383901681,1757170250156,-400.0,0.00036164,8]
[383901682,1757170250166,-400.0,0.00036164,8]
[383901683,1757170250176,-400.0,0.00036164,8]
[383901684,1757170250186,-400.0,0.00036164,8]
[383901685,1757170250196,-2974.82,0.00036164,8]
[383901686,1757170250206,-400.0,0.00036164,8]
[383901687,1757170250215,-400.0,0.00036164,8]
[383901688,1757170250225,-400.0,0.00036164,8]
[383901689,1757170250236,-549.16,0.00036164,8]
[383901690,1757170250247,-668.54,0.00036164,8]
[383901691,1757170250257,-624.0,0.00036164,8]
[383901692,1757170250267,-6082.16,0.00036164,8]
[383901693,1757170250277,-400.0,0.00036164,8]
[383901694,1757170250287,-400.0,0.00036164,8]
[383901695,1757170250297,-663.98,0.00036164,8]
[383901696,1757170250308,-688.84,0.00036164,8]
[383901697,1757170250319,-400.0,0.00036164,8]
[383901698,1757170250330,-400.0,0.00036164,8]
[383901699,1757170250340,-400.0,0.00036164,8]
[383901700,1757170250351,-400.0,0.00036164,8]
[383901701,1757170250362,-400.0,0.00036164,8]
[383901702,1757170250373,-400.0,0.00036164,8]
[383901703,1757170250384,-499.88,0.00036164,8]
[383901704,1757170250394,-400.0,0.00036164,8]
[383901705,1757170250405,-484.46,0.00036164,8]
[383901706,1757170250416,-400.0,0.00036164,8]
[383901707,1757170250426,-400.0,0.00036164,8]
[383901708,1757170250437,-476.06,0.00036164,8]
[383901709,1757170250446,-3059.45,0.00036164,8]
[383901710,1757170250457,-400.0,0.00036164,8]
[383901711,1757170250467,-400.0,0.00036164,8]
[383901712,1757170250477,-400.0,0.00036164,8]
[383901713,1757170250487,-402.34150443,0.00036164,8]
[383901714,1757170250497,-575.94,0.00036164,8]
[383901715,1757170250507,-400.0,0.00036164,8]
[383901716,1757170250517,-400.0,0.00036164,8]
[383901717,1757170250527,-5250.78,0.00036164,8]
[383901718,1757170250537,-400.0,0.00036164,8]
[383901719,1757170250547,-400.0,0.00036164,8]
[383901720,1757170250558,-400.0,0.00036164,8]
[383901721,1757170250568,-400.0,0.00036164,8]
[383901722,1757170250582,-2843.95,0.00036164,8]
[383901723,1757170250593,-461.39,0.00036164,8]
[383901724,1757170250607,-400.0,0.00036164,8]
[383901725,1757170250618,-400.0,0.00036164,8]
[383901726,1757170250815,-527.87,0.00036164,8]
[383901727,1757170250839,-410.67,0.00036164,8]
[383901728,1757170250849,-400.0,0.00036164,8]
[383901729,1757170250859,-400.0,0.00036164,8]
[383901730,1757170250870,-2567.18,0.00036164,8]
[383901731,1757170250881,-400.0,0.00036164,8]
[383901732,1757170250891,-400.0,0.00036164,8]
[383901733,1757170250901,-442.14,0.00036164,8]
[383901734,1757170250911,-501.62,0.00036164,8]
[383901735,1757170250921,-400.0,0.00036164,8]
[383901736,1757170250930,-416.91,0.00036164,8]
[383901737,1757170250940,-400.0,0.00036164,8]
[383901738,1757170250949,-400.0,0.00036164,8]
[383901739,1757170250959,-400.0,0.00036164,8]
[383901740,1757170250968,-400.0,0.00036164,8]
[383901741,1757170250978,-400.0,0.00036164,8]
[383901742,1757170250987,-400.0,0.00036164,5]
[383901743,1757170250997,-400.0,0.00036164,8]
[383901744,1757170251007,-400.0,0.00036164,2]
[383901745,1757170251016,-400.0,0.00036164,8]
[383901746,1757170251026,-1000.0,0.00036164,8]
[383901747,1757170251036,-905.69,0.00036164,8]
[383901748,1757170251045,-400.0,0.00036164,8]
[383901749,1757170251057,-400.0,0.00036164,8]
[383901750,1757170251067,-400.0,0.00036164,8]
[383901751,1757170251076,-400.0,0.00036164,8]
[383901752,1757170251086,-400.0,0.00036164,8]
[383901753,1757170251096,-400.0,0.00036164,8]
[383901754,1757170251107,-400.0,0.00036164,8]
[383901755,1757170251117,-400.0,0.00036164,8]
[383901756,1757170251127,-1247.63,0.00036164,8]
[383901757,1757170251136,-225.38834939,0.00036164,8]
[383901758,1757170251146,-400.0,0.00036164,8]
[383901759,1757170251155,-731.6,0.00036164,8]
[383901760,1757170251164,-400.0,0.00036164,8]
[383901761,1757170251174,-410.48,0.00036164,8]
[383901762,1757170251183,-405.72456102,0.00036164,8]
[383901763,1757170251192,-400.0,0.00036164,8]
[383901764,1757170251202,-400.0,0.00036164,8]
[383901765,1757170251211,-400.0,0.00036164,2]
[383901766,1757170251221,-400.0,0.00036164,8]
[383901767,1757170251230,-404.21777518,0.00036164,8]
[383901768,1757170251239,-668.52,0.00036164,8]
[383901769,1757170251250,-400.0,0.00036164,8]
[383901770,1757170251260,-400.0,0.00036164,8]
[383901771,1757170251270,-933.63396837,0.00036199,2]
[383901772,1757170251279,-2460.31,0.000362,14]
[383901773,1757170251289,-18900.08053672,0.00036265,2]
[383901774,1757170251299,-829.65849748,0.00036267,2]
[383901775,1757170251310,-151.0,0.00036278,2]
[383901776,1757170251320,-151.0,0.00036278,2]
[383901777,1757170251334,-500.0,0.00036278,2]
[383901778,1757170251344,-151.0,0.00036278,2]
[383901779,1757170251354,-201.93286099,0.00036278,2]
[383901780,1757170251363,-500.0,0.00036278,2]
[383901781,1757170251373,-151.0,0.00036278,2]
[383901782,1757170251382,-250.0,0.00036278,2]
[383901783,1757170251392,-151.0,0.00036278,2]
[383901784,1757170251402,-500.0,0.00036278,2]
[383901785,1757170251411,-250.0,0.00036278,2]
[383901786,1757170251421,-151.0,0.00036278,2]
[383901787,1757170251431,-500.0,0.00036278,2]
[383901788,1757170251440,-151.0,0.00036278,2]
[383901789,1757170251451,-250.0,0.00036278,2]
[383901790,1757170251460,-500.0,0.00036278,2]
[383901791,1757170251469,-3000.0,0.00036278,2]
[383901792,1757170251479,-250.0,0.00036278,2]
[383901793,1757170251490,-500.0,0.00036278,2]
[383901794,1757170251499,-151.0,0.00036278,2]
[383901795,1757170251509,-250.0,0.00036278,2]
[383901796,1757170251520,-500.0,0.00036278,2]
[383901797,1757170251531,-250.0,0.00036278,2]
[383901798,1757170251541,-151.0,0.00036278,2]
[383901799,1757170251552,-500.0,0.00036278,2]
[383901800,1757170251563,-151.0,0.00036278,2]
[383901801,1757170251573,-250.0,0.00036278,2]
[383901802,1757170251582,-151.0,0.00036278,2]
[383901803,1757170251592,-193.04544289,0.00036278,2]
[383901804,1757170251601,-250.0,0.00036278,2]
[383901805,1757170251611,-500.0,0.00036278,2]
[383901806,1757170251622,-500.0,0.00036278,2]
[383901807,1757170251632,-250.0,0.00036278,2]
[383901808,1757170251641,-151.0,0.00036278,2]
[383901809,1757170251652,-250.0,0.00036278,2]
[383901810,1757170251662,-500.0,0.00036278,2]
[383901811,1757170251671,-151.0,0.00036278,2]
[383901812,1757170251680,-250.0,0.00036278,2]
[383901813,1757170251690,-500.0,0.00036278,2]
[383901814,1757170251699,-151.0,0.00036278,2]
[383901815,1757170251709,-250.0,0.00036278,2]
[383901816,1757170251719,-151.0,0.00036278,2]
[383901817,1757170251728,-151.0,0.00036278,2]
[383901818,1757170251738,-322.6107,0.00036278,2]
[383901819,1757170251747,-250.0,0.00036278,2]
[383901820,1757170251758,-160.0,0.00036278,2]
[383901821,1757170251767,-250.0,0.00036278,2]
[383901822,1757170251777,-264.37230147,0.00036278,2]
[383901823,1757170251791,-151.0,0.00036278,2]
[383901824,1757170251800,-151.50990684,0.00036278,2]
[383901825,1757170251809,-623.58710448,0.00036278,2]
[383901826,1757170251819,-151.0,0.00036278,2]
[383901827,1757170251830,-267.46074303,0.00036278,2]
[383901828,1757170251840,-250.0,0.00036278,2]
[383901829,1757170251851,-1000.0,0.00036278,2]
[383901830,1757170251862,-1000.0,0.00036278,2]
[383901831,1757170251871,-1000.0,0.00036278,2]
[383901832,1757170251883,-1000.0,0.00036278,2]
[383901833,1757170251894,-1000.0,0.00036278,2]
[383901834,1757170251903,-1000.0,0.00036278,2]
[383901835,1757170251913,-308.73183728,0.00036278,2]
[383901836,1757170251923,-625.11,0.000363,30]
[383901837,1757170251932,-156.587,0.00036333,2]
[383901838,1757170251942,-150.0,0.00036334,7]
[383901839,1757170251952,-150.0,0.00036334,7]
[383901840,1757170251962,-150.0,0.00036334,7]
[383901841,1757170251972,-150.0,0.00036334,7]
[383901842,1757170251982,-871.39,0.00036345,2]
[383901843,1757170251992,-162.380719,0.00036388,2]
[383901844,1757170252001,-4000.0,0.0003643,4]
[383901845,1757170252012,-264.75,0.00036438,15]
[383901846,1757170252022,-657.49,0.00036438,8]
[383901847,1757170252032,-1707.02,0.00036438,8]
[383901848,1757170252043,-2472.17,0.00036438,8]
[383901849,1757170252052,-465.65,0.00036438,8]
[383901850,1757170252062,-400.0,0.00036438,8]
[383901851,1757170252072,-411.59939147,0.00036438,8]
[383901852,1757170252083,-400.0,0.00036438,8]
[383901853,1757170252095,-400.0,0.00036438,8]
[383901854,1757170252105,-3291.11,0.00036438,8]
[383901855,1757170252115,-1615.09,0.00036438,8]
[383901856,1757170252126,-400.0,0.00036438,8]
[383901857,1757170252135,-400.0,0.00036438,8]
[383901858,1757170252147,-400.0,0.00036438,8]
[383901859,1757170252157,-400.0,0.00036438,8]
[383901860,1757170252166,-407.61,0.00036438,8]
[383901861,1757170252187,-452.45,0.00036438,8]
[383901862,1757170252196,-581.14,0.00036438,8]
[383901863,1757170252209,-409.10472931,0.00036438,8]
[383901864,1757170252220,-400.0,0.00036438,8]
[383901865,1757170252231,-400.0,0.00036438,8]
[383901866,1757170252241,-400.0,0.00036438,8]
[383901867,1757170252251,-300.0,0.00036438,8]
[383901868,1757170252260,-400.0,0.00036438,8]
[383901869,1757170252271,-400.0,0.00036438,8]
[383901870,1757170252282,-400.0,0.00036438,8]
[383901871,1757170252293,-565.81,0.00036438,8]
[383901872,1757170252304,-400.0,0.00036438,8]
[383901873,1757170252315,-400.0,0.00036438,8]
[383901874,1757170252326,-400.0,0.00036438,8]
[383901875,1757170252337,-539.1,0.00036438,8]
[383901876,1757170252348,-400.0,0.00036438,8]
[383901877,1757170252358,-400.0,0.00036438,8]
[383901878,1757170252368,-400.0,0.00036438,8]
[383901879,1757170252381,-400.0,0.00036438,8]
[383901880,1757170252391,-400.0,0.00036438,8]
[383901881,1757170252401,-336.73892679,0.00036438,8]
[383901882,1757170252411,-412.22421887,0.00036438,8]
[383901883,1757170252421,-400.0,0.00036438,8]
[383901884,1757170252431,-191.69504257,0.00036438,8]
[383901885,1757170252441,-400.0,0.00036438,8]
[383901886,1757170252451,-400.0,0.00036438,8]
[383901887,1757170252461,-400.0,0.00036438,8]
[383901888,1757170252471,-4235.7,0.00036438,8]
[383901889,1757170252480,-494.76,0.00036438,8]
[383901890,1757170252490,-400.0,0.00036438,8]
[383901891,1757170252500,-400.0,0.00036438,8]
[383901892,1757170252511,-3533.29,0.00036438,8]